bitfinex/quotes_BTCUSD_20250522
["timestamp","ask_amount","ask_price","bid_price","bid_amount"]
[1747893997616,0.46037213,111010.0,111000.0,0.32355313]
[1747893997998,0.46037213,111010.0,111000.0,0.07358078]
[1747893999609,0.46037213,111010.0,111000.0,0.0618]
[1747893999829,0.46037213,111010.0,111000.0,0.52175091]
[1747893999830,0.18116394,111010.0,111000.0,0.52175091]
[1747894000041,0.19017156,111010.0,111000.0,0.52175107]
[1747894000248,0.19917935,111010.0,111000.0,0.92175107]
[1747894000473,0.19917935,111010.0,111000.0,2.10047583]
[1747894001341,0.19917935,111010.0,111000.0,2.06228323]
[1747894001551,0.21719533,111010.0,111000.0,0.72355313]
[1747894002167,0.19017156,111010.0,111000.0,0.90373331]
[1747894002383,0.001,111010.0,111000.0,2.19722335]
[1747894002598,0.19017148,111010.0,111000.0,1.68151743]
[1747894002821,0.19017148,111010.0,111000.0,1.45889691]
[1747894003036,0.20818706,111010.0,111000.0,1.45889707]
[1747894003244,0.19017148,111010.0,111000.0,1.46790583]
[1747894003455,0.19917919,111010.0,111000.0,0.81731251]
[1747894004159,0.18116394,111010.0,111000.0,0.82632103]
[1747894004358,0.19017156,111010.0,111000.0,0.81731219]
[1747894004804,0.19017156,111010.0,111000.0,0.79929491]
[1747894005260,0.19917935,111010.0,111000.0,0.79929491]
[1747894005557,0.19017156,111010.0,111000.0,0.80830359]
[1747894006383,0.19917943,111010.0,111000.0,0.79028615]
[1747894006775,0.19917935,111010.0,111000.0,0.79929507]
[1747894006931,0.19917927,111010.0,111000.0,0.79929507]
[1747894007131,0.19917927,111010.0,111000.0,0.80830375]
[1747894007401,0.001,111010.0,111000.0,0.78041209]
[1747894007602,0.001,111010.0,111000.0,0.78942053]
[1747894007972,0.19017156,111010.0,111000.0,0.78942069]
[1747894008172,0.19017156,111010.0,111000.0,1.09738855]
[1747894008367,0.19017156,111010.0,111000.0,0.60362933]
[1747894008574,0.20818738,111010.0,111000.0,0.34]
[1747894008779,0.20818787,111010.0,111000.0,0.60175313]
[1747894009720,0.21719606,111010.0,111000.0,0.60175313]
[1747894009979,0.21719606,111010.0,111000.0,0.34]
[1747894010160,0.24859606,111010.0,111000.0,0.60175313]
[1747894010552,0.21719606,111010.0,111000.0,0.60175313]
[1747894010754,0.34365052,111010.0,111000.0,0.34]
[1747894011139,0.34365052,111010.0,111000.0,0.60175313]
[1747894012101,0.34365052,111010.0,111000.0,0.34]
[1747894012679,0.33464257,111010.0,111000.0,0.34]
[1747894013481,0.18018018,111000.0,110990.0,0.60175313]
[1747894013695,0.46835746,111000.0,110990.0,0.60175313]
[1747894013874,0.45034018,111000.0,110990.0,1.06067454]
[1747894014080,0.47736565,111000.0,110990.0,0.88948795]
[1747894014480,0.47736557,111000.0,110990.0,0.88948795]
[1747894015093,0.47836557,111000.0,110990.0,0.88047813]
[1747894015307,0.47836557,111000.0,110990.0,0.88948795]
[1747894015627,0.20820557,111000.0,110990.0,0.89148795]
[1747894015859,0.001,111000.0,110990.0,1.23495839]
[1747894017105,0.001,111000.0,110990.0,0.97320526]
[1747894017311,0.001,111000.0,110990.0,1.63495839]
[1747894022329,0.001,111000.0,110990.0,1.90511839]
[1747894023173,0.001,111000.0,110990.0,1.64336526]
[1747894023390,0.001,111000.0,110990.0,1.90511839]
[1747894027199,0.001,111000.0,110990.0,2.18141237]
[1747894027621,0.001,111000.0,110990.0,1.91965924]
[1747894027841,0.001,111000.0,110990.0,1.65790611]
[1747894028069,0.001,111000.0,110990.0,1.91965924]
[1747894029413,0.18118018,111000.0,110990.0,1.31749617]
[1747894029609,0.25448878,111000.0,110990.0,0.002]
[1747894029746,0.27250662,111000.0,110990.0,0.002]
[1747894030210,0.0653,111000.0,110990.0,0.78394954]
[1747894030436,0.19018845,111000.0,110990.0,0.80196893]
[1747894030723,0.19919697,111000.0,110990.0,0.81097834]
[1747894030940,0.27250573,111000.0,110990.0,0.342]
[1747894031147,0.26349778,111000.0,110990.0,0.342]
[1747894031333,0.26349778,111000.0,110990.0,0.60375313]
[1747894031545,0.25448845,111000.0,110990.0,0.81097858]
[1747894031748,0.23219689,111000.0,110990.0,0.81998799]
[1747894031987,0.23219689,111000.0,110990.0,0.81097858]
[1747894032184,0.001,111000.0,110990.0,2.15284496]
[1747894032394,0.001,111000.0,110990.0,2.02207696]
[1747894032599,0.001,111000.0,110990.0,1.48588096]
[1747894033429,0.001,111000.0,110990.0,1.51668096]
[1747894033555,0.001,111000.0,110990.0,1.48588096]
[1747894034921,0.001,111000.0,110990.0,1.88588096]
[1747894036736,0.001,111000.0,110990.0,2.15604096]
[1747894037234,0.001,111000.0,110990.0,2.47933494]
[1747894037445,0.001,111000.0,110990.0,2.90137494]
[1747894043132,0.0652,111030.0,111020.0,0.36702117]
[1747894043343,0.0606,111040.0,111030.0,0.54715023]
[1747894043560,0.0306,111040.0,111030.0,3.00063536]
[1747894043778,0.10206233,111050.0,111040.0,0.54713157]
[1747894044010,0.11420555,111070.0,111060.0,0.20709451]
[1747894044228,0.38432555,111070.0,111060.0,0.79984383]
[1747894044437,0.30156167,111070.0,111060.0,1.68763202]
[1747894044662,0.3335871,111070.0,111060.0,1.53877091]
[1747894044867,0.32458426,111070.0,111060.0,1.42223091]
[1747894045082,0.34258994,111070.0,111060.0,1.42223091]
[1747894045310,0.34258994,111070.0,111060.0,1.44023829]
[1747894045311,0.13317758,111070.0,111060.0,1.44023829]
[1747894045720,0.3162442,111070.0,111060.0,1.43123472]
[1747894045945,0.24651933,111070.0,111060.0,1.44023837]
[1747894046154,0.24351933,111070.0,111060.0,1.44924194]
[1747894046361,0.24351933,111070.0,111060.0,1.47701266]
[1747894046580,0.25352201,111070.0,111060.0,1.47801266]
[1747894046793,0.06445271,111070.0,111060.0,1.48701623]
[1747894047000,0.07345531,111070.0,111060.0,1.47801266]
[1747894047239,0.07345531,111070.0,111060.0,1.26191442]
[1747894047240,0.41512982,111070.0,111060.0,1.26191442]
[1747894047456,0.6942533,111070.0,111060.0,0.001]
[1747894047675,0.05071338,111020.0,111000.0,0.89539102]
[1747894047932,0.27947571,111020.0,111010.0,0.26175313]
[1747894048129,0.26146143,111020.0,111010.0,0.61076124]
[1747894048348,0.0327,111020.0,111010.0,0.54947861]
[1747894048565,0.26145918,111030.0,111020.0,0.18915494]
[1747894048796,0.26145918,111030.0,111020.0,0.79090815]
[1747894049014,0.26145918,111030.0,111020.0,0.27076051]
[1747894049236,0.06345263,111030.0,111020.0,0.45090823]
[1747894049453,0.06345263,111030.0,111020.0,1.87765048]
[1747894049832,0.24358412,111030.0,111020.0,1.85963653]
[1747894050039,0.25259004,111030.0,111020.0,1.87865073]
[1747894050257,0.00015263,111030.0,111020.0,1.63512008]
[1747894050499,0.00015263,111030.0,111020.0,1.72466564]
[1747894050716,0.18929012,111030.0,111020.0,1.29993963]
[1747894050960,0.26139702,111030.0,111020.0,0.01021567]
[1747894051355,0.27140294,111030.0,111020.0,0.35021567]
[1747894051573,0.28040951,111030.0,111020.0,0.35021567]
[1747894052394,0.27140343,111030.0,111020.0,0.35021567]
[1747894054171,0.27140343,111030.0,111020.0,0.34621567]
[1747894054402,0.25339045,111030.0,111020.0,0.34621567]
[1747894054620,0.06425263,111030.0,111020.0,1.47281069]
[1747894054836,0.00115263,111030.0,111020.0,1.98037012]
[1747894055055,0.03195263,111030.0,111020.0,1.98037012]
[1747894055546,0.00115263,111030.0,111020.0,1.98037012]
[1747894056379,0.00115263,111030.0,111020.0,2.25045012]
[1747894057016,0.00115263,111030.0,111020.0,2.93252325]
[1747894057224,0.00115263,111030.0,111020.0,2.92730758]
[1747894057703,2.00115263,111030.0,111020.0,2.75604158]
[1747894057910,2.03135263,111030.0,111020.0,1.86453958]
[1747894058135,2.03135263,111030.0,111020.0,1.83499658]
[1747894058347,2.03135263,111030.0,111020.0,1.79198558]
[1747894061203,2.00115263,111030.0,111020.0,1.79198558]
[1747894064190,2.24368412,111030.0,111020.0,0.223438]
[1747894064411,2.53177669,111030.0,111020.0,0.001]
[1747894064622,2.54078318,111030.0,111020.0,0.001]
[1747894065032,2.53177669,111030.0,111020.0,0.60275313]
[1747894065286,2.27970902,111030.0,111020.0,0.60275313]
[1747894066223,2.27070253,111030.0,111020.0,0.60275313]
[1747894066863,2.27970902,111030.0,111020.0,0.60275313]
[1747894067065,2.27070351,111030.0,111020.0,0.60275313]
[1747894067302,2.24368412,111030.0,111020.0,0.78290085]
[1747894067510,2.09855263,111030.0,111020.0,1.68428924]
[1747894067713,2.09855263,111030.0,111020.0,1.66828924]
[1747894067929,2.09355263,111030.0,111020.0,1.46325024]
[1747894068355,2.27368412,111030.0,111020.0,1.30829343]
[1747894068565,2.27368412,111030.0,111020.0,1.29814673]
[1747894068973,2.27368412,111030.0,111020.0,1.28013303]
[1747894069471,2.27368412,111030.0,111020.0,1.28913992]
[1747894069606,2.27368412,111030.0,111020.0,1.28013303]
[1747894069810,2.09355263,111030.0,111020.0,1.28913984]
[1747894070030,2.06155263,111030.0,111020.0,1.28913984]
[1747894070236,2.30050245,111030.0,111020.0,0.60275313]
[1747894070446,2.28249004,111030.0,111020.0,0.99322323]
[1747894070669,2.2914962,111030.0,111020.0,0.61176051]
[1747894071143,2.3095091,111030.0,111020.0,0.001]
[1747894071354,2.29149702,111030.0,111020.0,0.001]
[1747894071755,2.30050302,111030.0,111020.0,0.26275313]
[1747894071957,2.30050302,111030.0,111020.0,0.08051791]
[1747894072632,2.30150302,111030.0,111020.0,0.08251791]
[1747894072830,2.30150302,111030.0,111020.0,0.08351791]
[1747894073034,2.30150302,111030.0,111020.0,0.08251791]
[1747894073415,2.29249661,111030.0,111020.0,0.08251791]
[1747894073625,2.31050861,111030.0,111020.0,0.26375313]
[1747894073843,2.28348996,111030.0,111020.0,0.60375313]
[1747894074072,2.36443263,111030.0,111020.0,0.96680545]
[1747894074295,2.27448412,111030.0,111020.0,0.97581251]
[1747894074565,2.27448412,111030.0,111020.0,0.98481949]
[1747894074781,2.27348412,111030.0,111020.0,0.99182638]
[1747894075002,2.27448412,111030.0,111020.0,0.99282638]
[1747894075442,2.27448412,111030.0,111020.0,0.99282581]
[1747894075652,2.09435263,111030.0,111020.0,0.99282581]
[1747894075888,2.2965962,111030.0,111020.0,0.60275313]
[1747894076114,2.57572253,111030.0,111020.0,0.60275313]
[1747894076373,2.56671686,111030.0,111020.0,0.341]
[1747894076592,2.65626242,111030.0,111020.0,0.341]
[1747894080565,3.49068242,111030.0,111020.0,0.001]
[1747894080759,3.50522327,111030.0,111020.0,0.001]
[1747894081546,3.51149684,111030.0,111020.0,0.001]
[1747894082155,0.19821515,110990.0,110980.0,0.66175313]
[1747894082360,0.26121507,110990.0,110980.0,1.00175313]
[1747894082536,0.25220566,110990.0,110980.0,1.01076376]
[1747894082738,0.4761,111010.0,111000.0,0.0180176]
[1747894082938,0.92638394,111010.0,111000.0,1.58105691]
[1747894083151,0.92638394,111010.0,111000.0,1.21563923]
[1747894083358,0.92638394,111010.0,111000.0,1.13134449]
[1747894083359,0.4141,111010.0,111000.0,1.13134449]
[1747894083553,0.4141,111010.0,111000.0,1.12233605]
[1747894083819,0.59426394,111010.0,111000.0,1.13134465]
[1747894084050,0.63417148,111010.0,111000.0,1.03132221]
[1747894084241,0.445,111010.0,111000.0,1.04933933]
[1747894084379,0.4141,111010.0,111000.0,1.31109246]
[1747894084779,2.27528412,111030.0,111020.0,0.5291551]
[1747894085004,2.54540412,111030.0,111020.0,0.79991553]
[1747894085218,2.30127263,111030.0,111020.0,0.82693654]
[1747894085507,2.48140412,111030.0,111020.0,0.79991553]
[1747894085648,2.51400412,111030.0,111020.0,1.20892275]
[1747894085853,2.55481012,111030.0,111020.0,0.60175313]
[1747894086111,2.5688162,111030.0,111020.0,0.60175313]
[1747894086332,2.55080412,111030.0,111020.0,0.79991521]
[1747894086702,2.55680996,111030.0,111020.0,0.79991521]
[1747894086920,2.55480996,111030.0,111020.0,0.79991521]
[1747894087084,2.09655263,111030.0,111020.0,0.79090807]
[1747894087322,2.06475263,111030.0,111020.0,1.08431613]
[1747894087522,2.29479588,111030.0,111020.0,0.60175313]
[1747894087720,2.30380188,111030.0,111020.0,0.60175313]
[1747894087951,2.27678412,111030.0,111020.0,0.78190085]
[1747894088149,2.27678412,111030.0,111020.0,0.79991545]
[1747894088360,2.27778412,111030.0,111020.0,0.79991545]
[1747894088595,2.27778412,111030.0,111020.0,0.80892259]
[1747894088753,2.27778412,111030.0,111020.0,0.81792965]
[1747894089157,2.06575263,111030.0,111020.0,0.82693646]
[1747894090153,2.03315263,111030.0,111020.0,1.88752702]
[1747894090759,2.03315263,111030.0,111020.0,2.28752702]
[1747894093180,2.03315263,111030.0,111020.0,2.33652702]
[1747894094399,2.03315263,111030.0,111020.0,2.35106787]
[1747894094603,2.03215263,111030.0,111020.0,2.35106787]
[1747894094727,2.03215263,111030.0,111020.0,2.612821]
[1747894094926,2.03215263,111030.0,111020.0,2.613821]
[1747894095128,1.4184885,111030.0,111020.0,2.613821]
[1747894095347,1.37347015,111030.0,111020.0,2.613821]
[1747894095544,1.3284518,111030.0,111020.0,2.613821]
[1747894095769,1.3274518,111030.0,111020.0,2.613821]
[1747894095983,1.28243345,111030.0,111020.0,2.613821]
[1747894096184,1.18768852,111030.0,111020.0,2.614821]
[1747894096402,1.16957852,111030.0,111020.0,2.614821]
[1747894096647,1.12456017,111030.0,111020.0,2.614821]
[1747894096977,1.07174182,111030.0,111020.0,3.003741]
[1747894097177,1.02179989,111030.0,111020.0,3.012741]
[1747894097392,0.98279989,111030.0,111020.0,3.012741]
[1747894097584,0.93878154,111030.0,111020.0,3.014741]
[1747894097786,0.93878154,111030.0,111020.0,3.013741]
[1747894098019,0.86316819,111030.0,111020.0,3.376021]
[1747894098247,0.13856233,111070.0,111060.0,0.54709427]
[1747894098385,0.40864233,111070.0,111060.0,2.89770996]
[1747894098585,0.31862895,111070.0,111060.0,2.41905012]
[1747894098921,0.58870895,111070.0,111060.0,2.34642312]
[1747894099241,0.40864233,111070.0,111060.0,2.35542669]
[1747894099453,0.40873412,111070.0,111060.0,2.35542669]
[1747894099772,0.41073412,111070.0,111060.0,2.09367356]
[1747894100060,0.59080074,111070.0,111060.0,2.35542677]
[1747894100251,0.41073412,111070.0,111060.0,2.36443034]
[1747894100467,0.59080074,111070.0,111060.0,2.35542677]
[1747894100599,0.59080074,111070.0,111060.0,2.26914412]
[1747894101264,0.41073412,111070.0,111060.0,2.26914412]
[1747894101471,0.59980334,111070.0,111060.0,0.74]
[1747894101689,0.60880682,111070.0,111060.0,0.34]
[1747894102101,0.24361527,111040.0,111030.0,0.00900657]
[1747894102310,0.0635,111040.0,111030.0,0.94055536]
[1747894102519,0.24361527,111040.0,111030.0,0.201757]
[1747894102738,0.24361527,111040.0,111030.0,0.53777]
[1747894102739,0.2526203,111040.0,111030.0,0.53777]
[1747894102931,0.2526203,111040.0,111030.0,0.662225]
[1747894103144,0.2526203,111040.0,111030.0,0.74]
[1747894103353,0.2526203,111040.0,111030.0,0.74900649]
[1747894103507,0.2536203,111040.0,111030.0,0.9962379]
[1747894104210,0.24461527,111040.0,111030.0,1.17636939]
[1747894104417,0.24461527,111040.0,111030.0,1.35590311]
[1747894104828,0.2536203,111040.0,111030.0,1.36490952]
[1747894105285,0.24461527,111040.0,111030.0,1.38292185]
[1747894105455,0.24461527,111040.0,111030.0,1.39192785]
[1747894105885,0.24461527,111040.0,111030.0,1.13017472]
[1747894106283,0.30324,111040.0,111030.0,1.21972028]
[1747894106489,0.0332,111040.0,111030.0,1.21972028]
[1747894107212,0.001,111040.0,111030.0,1.21972028]
[1747894107831,0.50224065,111050.0,111040.0,0.54713182]
[1747894108051,0.51124495,111050.0,111040.0,0.53812671]
[1747894108389,0.51124495,111050.0,111040.0,0.34]
[1747894108605,0.52925411,111050.0,111040.0,0.74]
[1747894108774,0.79100724,111050.0,111040.0,0.74]
[1747894109057,0.24803652,111040.0,111030.0,0.34]
[1747894109271,0.21203149,111030.0,111020.0,0.1891551]
[1747894109473,0.48207149,111030.0,111020.0,0.93816224]
[1747894109701,0.48207149,111030.0,111020.0,0.95617594]
[1747894109910,0.48207149,111030.0,111020.0,0.93816224]
[1747894110119,0.48207149,111030.0,111020.0,0.94716922]
[1747894110328,0.48207149,111030.0,111020.0,0.93816224]
[1747894110538,0.49107733,111030.0,111020.0,0.9291551]
[1747894110748,0.49107733,111030.0,111020.0,0.93816232]
[1747894110959,0.53278333,111030.0,111020.0,0.74900738]
[1747894111165,0.52377733,111030.0,111020.0,0.75801468]
[1747894111373,0.51477149,111030.0,111020.0,0.94716962]
[1747894111761,0.51477149,111030.0,111020.0,0.95617676]
[1747894111988,0.51477149,111030.0,111020.0,0.9381624]
[1747894112190,0.51477149,111030.0,111020.0,0.9321551]
[1747894112401,0.52477741,111030.0,111020.0,0.9461624]
[1747894113372,0.51577149,111030.0,111020.0,0.96417668]
[1747894113598,0.33568,111030.0,111020.0,1.70082057]
[1747894113795,0.51581149,111030.0,111020.0,1.48859566]
[1747894113953,0.52481733,111030.0,111020.0,0.9461624]
[1747894114153,0.51581149,111030.0,111020.0,0.96417676]
[1747894114367,0.51581149,111030.0,111020.0,0.95516962]
[1747894114961,0.51581149,111030.0,111020.0,0.96417676]
[1747894115990,0.52481741,111030.0,111020.0,0.95516962]
[1747894116187,0.52481741,111030.0,111020.0,0.9461624]
[1747894116443,0.52481741,111030.0,111020.0,0.76601468]
[1747894116648,0.52481741,111030.0,111020.0,0.7750219]
[1747894116876,0.93917251,111030.0,111020.0,0.008]
[1747894117085,0.95718508,111030.0,111020.0,0.008]
[1747894117923,0.96573592,111030.0,111020.0,0.005]
[1747894118310,0.96773592,111030.0,111020.0,0.005]
[1747894118779,0.18018018,111000.0,110990.0,0.34]
[1747894118948,0.52486853,111000.0,110990.0,0.58086963]
[1747894119152,0.53387705,111000.0,110990.0,0.33995263]
[1747894119733,0.54288573,111000.0,110990.0,0.33995263]
[1747894119931,0.54388573,111000.0,110990.0,0.34195263]
[1747894120139,0.51686018,111000.0,110990.0,0.54016843]
[1747894120339,0.51686018,111000.0,110990.0,0.54016851]
[1747894120948,0.51686018,111000.0,110990.0,0.74195263]
[1747894120949,0.55289473,111000.0,110990.0,0.74195263]
[1747894121168,0.55289441,111000.0,110990.0,0.74195263]
[1747894122291,0.55289433,111000.0,110990.0,0.74195263]
[1747894122827,0.54388557,111000.0,110990.0,0.74195263]
[1747894123252,0.24678018,111000.0,110990.0,0.74195263]
[1747894123507,0.51690018,111000.0,110990.0,1.05803177]
[1747894123734,0.51690018,111000.0,110990.0,1.06704134]
[1747894123973,0.51690018,111000.0,110990.0,1.07605083]
[1747894124103,0.0342,111000.0,110990.0,1.09406949]
[1747894124311,0.27112,111000.0,110990.0,1.09406949]
[1747894124909,0.33492,111000.0,110990.0,1.09406949]
[1747894125111,0.51510018,111000.0,110990.0,1.08506024]
[1747894125582,0.51510018,111000.0,110990.0,1.07605083]
[1747894126351,0.001,111000.0,110990.0,1.08506008]
[1747894126551,0.27116,111000.0,110990.0,1.34681321]
[1747894126773,0.001,111000.0,110990.0,1.34681321]
[1747894126997,0.001,111000.0,110990.0,1.07605083]
[1747894127295,0.0648,111000.0,110990.0,1.08506008]
[1747894127487,0.24498018,111000.0,110990.0,1.07605083]
[1747894127635,0.24498018,111000.0,110990.0,0.74195263]
[1747894127840,0.26299689,111000.0,110990.0,0.75096245]
[1747894128192,0.24498018,111000.0,110990.0,1.6168409]
[1747894128390,0.24498018,111000.0,110990.0,1.6348598]
[1747894128591,0.24498018,111000.0,110990.0,1.46105547]
[1747894129360,0.24498018,111000.0,110990.0,1.47006496]
[1747894129556,0.24498018,111000.0,110990.0,1.46105547]
[1747894131240,0.0648,111000.0,110990.0,1.47907421]
[1747894131428,0.33496,111000.0,110990.0,1.47907421]
[1747894132256,0.33496,111000.0,110990.0,1.47006496]
[1747894132413,0.51514018,111000.0,110990.0,1.47907429]
[1747894132916,0.51514018,111000.0,110990.0,1.46105547]
[1747894133195,0.51514018,111000.0,110990.0,1.20192147]
[1747894133399,0.51514018,111000.0,110990.0,1.21093096]
[1747894133975,0.51514018,111000.0,110990.0,1.20192147]
[1747894134197,0.001,111000.0,110990.0,2.06266067]
[1747894134405,0.0646,111030.0,111020.0,0.54716889]
[1747894134615,0.24473149,111030.0,111020.0,0.79991521]
[1747894135232,0.24473149,111030.0,111020.0,0.8089221]
[1747894135439,0.24473149,111030.0,111020.0,0.79991521]
[1747894135642,0.0646,111030.0,111020.0,0.80892202]
[1747894135844,0.25373749,111030.0,111020.0,0.34]
[1747894136060,0.28075663,111030.0,111020.0,0.34]
[1747894136266,0.26274365,111030.0,111020.0,0.34]
[1747894136477,0.28075647,111030.0,111020.0,0.34]
[1747894136889,0.27174998,111030.0,111020.0,0.34]
[1747894137402,0.51689149,111030.0,111020.0,0.80091521]
[1747894137644,0.24673149,111030.0,111020.0,0.81892908]
[1747894137784,0.24973149,111030.0,111020.0,0.81892908]
[1747894137985,0.24973149,111030.0,111020.0,0.80091521]
[1747894138191,0.005,111030.0,111020.0,1.23584891]
[1747894139430,0.005,111030.0,111020.0,2.63426091]
[1747894139640,0.005,111030.0,111020.0,2.25630191]
[1747894140692,0.24171645,111040.0,111030.0,0.53814406]
[1747894140896,0.24171645,111040.0,111030.0,0.81790927]
[1747894141326,0.0625,111050.0,111040.0,0.54713157]
[1747894141542,0.0625,111070.0,111060.0,0.5380907]
[1747894141752,0.0625,111070.0,111060.0,0.79984383]
[1747894141968,0.24270435,111070.0,111060.0,0.79984383]
[1747894142191,0.00013773,111070.0,111060.0,1.6933614]
[1747894142408,0.00013773,111070.0,111060.0,1.78290696]
[1747894142854,0.04163773,111080.0,111070.0,0.80882876]
[1747894143061,0.04214714,111080.0,111070.0,2.07557276]
[1747894143287,0.04214714,111080.0,111070.0,2.34569276]
[1747894143492,0.04214714,111080.0,111070.0,2.07008276]
[1747894143694,0.04214714,111080.0,111070.0,1.95697876]
[1747894143913,0.04214714,111080.0,111070.0,1.98853468]
[1747894144180,0.01064714,111080.0,111070.0,1.98853468]
[1747894144391,0.01064714,111080.0,111070.0,1.81632711]
[1747894144817,0.01464714,111080.0,111070.0,1.81632711]
[1747894145267,0.22659755,111080.0,111070.0,1.65458879]
[1747894145479,0.01464714,111080.0,111070.0,1.48305711]
[1747894145728,0.01464714,111080.0,111070.0,2.61686111]
[1747894146617,0.04714714,111080.0,111070.0,1.81474211]
[1747894147002,0.01464714,111080.0,111070.0,1.81474211]
[1747894147352,0.01464714,111080.0,111070.0,1.84002111]
[1747894147559,0.0329,111110.0,111080.0,0.01454085]
[1747894147770,0.21305462,111110.0,111100.0,0.79077194]
[1747894148003,0.24445462,111110.0,111100.0,0.95281938]
[1747894148419,0.24445462,111110.0,111100.0,1.36181987]
[1747894148633,0.24445462,111110.0,111100.0,1.36363887]
[1747894148837,0.24745462,111110.0,111100.0,1.21173887]
[1747894149046,0.24745462,111110.0,111100.0,0.95281954]
[1747894149291,0.24745462,111110.0,111100.0,1.73832016]
[1747894149971,0.24945462,111110.0,111100.0,1.74297824]
[1747894150394,0.24445462,111110.0,111100.0,1.74297824]
[1747894150638,0.06545273,111110.0,111100.0,1.75197865]
[1747894150865,0.06645273,111110.0,111100.0,1.75197873]
[1747894151082,0.24645453,111110.0,111100.0,1.62357332]
[1747894151515,0.24645453,111110.0,111100.0,1.63257389]
[1747894151731,0.25545397,111110.0,111100.0,1.41655313]
[1747894151938,0.27345325,111110.0,111100.0,1.15476]
[1747894152369,0.26445357,111110.0,111100.0,0.74]
[1747894152594,0.26445357,111110.0,111100.0,1.00175313]
[1747894152808,0.26445357,111110.0,111100.0,0.60175313]
[1747894153443,0.27345333,111110.0,111100.0,0.60175313]
[1747894153655,0.26445357,111110.0,111100.0,0.60175313]
[1747894153855,0.26445365,111110.0,111100.0,0.60175313]
[1747894154072,0.26445349,111110.0,111100.0,0.60175313]
[1747894154483,0.24645453,111110.0,111100.0,0.61075394]
[1747894154692,0.25545405,111110.0,111100.0,0.60175313]
[1747894156434,0.25545405,111110.0,111100.0,1.01643313]
[1747894157072,0.24645453,111110.0,111100.0,1.02543403]
[1747894157295,0.25545397,111110.0,111100.0,1.02543403]
[1747894157504,0.26445349,111110.0,111100.0,1.01643313]
[1747894157917,0.26445349,111110.0,111100.0,1.01639313]
[1747894158124,0.25545397,111110.0,111100.0,1.01639313]
[1747894158358,0.25545397,111110.0,111100.0,1.02539403]
[1747894158759,0.25545397,111110.0,111100.0,0.75464]
[1747894158994,0.26445357,111110.0,111100.0,1.01639313]
[1747894159392,0.26445357,111110.0,111100.0,0.60175313]
[1747894160069,0.26445357,111110.0,111090.0,1.16233854]
[1747894160270,0.064,111100.0,111090.0,1.16233854]
[1747894160484,0.20015357,111110.0,111100.0,0.21602061]
[1747894160485,0.03455273,111110.0,111100.0,0.21602061]
[1747894160709,0.00215273,111110.0,111100.0,1.7575973]
[1747894160928,0.00015273,111110.0,111100.0,1.7575973]
[1747894162044,0.00015273,111110.0,111100.0,2.0975973]
[1747894162443,0.00015273,111110.0,111100.0,1.8377283]
[1747894162725,0.03075273,111110.0,111100.0,1.33054397]
[1747894162891,0.25035397,111110.0,111100.0,1.47533194]
[1747894163110,0.25935357,111110.0,111100.0,1.28631313]
[1747894163329,0.25935357,111110.0,111100.0,1.29631403]
[1747894163634,0.25935357,111110.0,111100.0,1.0345609]
[1747894163845,0.25935357,111110.0,111100.0,0.341]
[1747894163846,0.2773535,111110.0,111100.0,0.341]
[1747894164039,0.25935397,111110.0,111100.0,0.341]
[1747894164462,0.26835389,111110.0,111100.0,0.60275313]
[1747894165089,0.26835389,111110.0,111100.0,0.341]
[1747894165453,0.26835389,111110.0,111100.0,0.34]
[1747894165857,0.27735398,111110.0,111100.0,0.341]
[1747894166063,0.25935397,111110.0,111100.0,0.341]
[1747894166269,0.25935397,111110.0,111100.0,0.34]
[1747894166700,0.26035397,111110.0,111100.0,0.34]
[1747894166935,0.26135397,111110.0,111100.0,0.34]
[1747894167071,0.26135397,111110.0,111100.0,0.60175313]
[1747894167275,0.35089985,111110.0,111100.0,0.34]
[1747894168376,0.3592487,111110.0,111100.0,0.34]
[1747894169752,0.35024886,111110.0,111100.0,0.34]
[1747894169953,0.35881725,111110.0,111100.0,0.34]
[1747894170952,0.62873725,111110.0,111100.0,0.34]
[1747894172713,0.24325041,111080.0,111070.0,0.47337567]
[1747894172927,0.24325041,111080.0,111070.0,0.50038484]
[1747894173138,0.24325041,111080.0,111070.0,0.84038492]
[1747894173755,0.24325041,111080.0,111070.0,0.831382]
[1747894173966,0.24325041,111080.0,111070.0,0.840385]
[1747894174182,0.24325041,111080.0,111070.0,0.83338208]
[1747894174383,0.21005041,111080.0,111070.0,0.85138784]
[1747894174821,0.21005041,111080.0,111070.0,0.85138792]
[1747894175015,0.21105041,111080.0,111070.0,0.85638792]
[1747894175245,0.24155041,111080.0,111070.0,0.856388]
[1747894175422,0.24055041,111080.0,111070.0,0.851388]
[1747894175625,0.24055041,111080.0,111070.0,0.84238508]
[1747894175858,0.24155041,111080.0,111070.0,0.84538508]
[1747894176261,0.24155041,111080.0,111070.0,0.85438784]
[1747894176459,0.001,111080.0,111070.0,0.85438784]
[1747894177404,0.001,111080.0,111070.0,1.15596484]
[1747894181331,0.001,111080.0,111070.0,1.12440892]
[1747894181540,0.001,111080.0,111070.0,0.77540567]
[1747894182152,0.001,111080.0,111070.0,0.78440892]
[1747894182428,0.001,111080.0,111070.0,0.87395448]
[1747894182904,0.001,111080.0,111070.0,1.14391448]
[1747894183115,0.001,111080.0,111070.0,1.20191448]
[1747894183448,0.001,111080.0,111070.0,1.54191448]
[1747894183864,0.001,111080.0,111070.0,1.56830737]
[1747894184072,0.001,111080.0,111070.0,1.51030737]
[1747894184947,0.001,111080.0,111070.0,1.54583637]
[1747894186222,0.24455041,111080.0,111070.0,1.30309361]
[1747894186449,0.26255439,111080.0,111070.0,0.63314602]
[1747894186652,0.25355228,111080.0,111070.0,0.64214927]
[1747894186760,0.26255439,111080.0,111070.0,0.63314602]
[1747894186971,0.27155658,111080.0,111070.0,0.63314602]
[1747894187190,0.2715565,111080.0,111070.0,0.63314602]
[1747894187595,0.28055893,111080.0,111070.0,0.63314602]
[1747894187843,0.53251503,111080.0,111070.0,0.03139289]
[1747894188474,0.60197413,111080.0,111070.0,0.37139289]
[1747894188679,0.60197413,111080.0,111070.0,0.345]
[1747894188884,0.52351284,111080.0,111070.0,0.345]
[1747894189497,1.0258584,111080.0,111070.0,0.005]
[1747894189923,1.42911925,111080.0,111070.0,0.005]
[1747894190148,0.20713133,111040.0,111030.0,0.26175313]
[1747894190349,0.54149125,111040.0,111030.0,0.60175313]
[1747894190569,0.54149173,111040.0,111030.0,0.26175313]
[1747894190772,0.25283741,111030.0,111020.0,0.0090073]
[1747894190985,0.24383149,111030.0,111020.0,0.27076043]
[1747894191200,0.24383149,111030.0,111020.0,0.80892243]
[1747894191435,0.24383149,111030.0,111020.0,0.81843882]
[1747894192612,0.24383149,111030.0,111020.0,0.80442478]
[1747894192798,0.25283741,111030.0,111020.0,0.61526992]
[1747894193015,0.27084982,111030.0,111020.0,0.26626254]
[1747894193222,0.25283741,111030.0,111020.0,0.26626254]